fUSD/lending_fUSD_20240123
["ID","MTS","AMOUNT","RATE_DAILY","PERIOD"]
[312567378,1706009438480,-3466.66028671,0.000227,2]
[312567379,1706009438495,-70524.37529351,0.000227,2]
[312567380,1706009438505,-9490.6934,0.000227,2]
[312567381,1706009438514,-776.48,0.00022737,2]
[312567382,1706009438524,-159.79,0.00022879,2]
[312567383,1706009438533,-390.7268265,0.0002289,2]
[312567384,1706009438542,-1630.9953,0.00022899,2]
[312567385,1706009438551,-11989.8148,0.000229,2]
[312567386,1706009438562,-364.04008477,0.00022999,2]
[312567387,1706009438571,-23708.67540393,0.00022999,2]
[312567388,1706009438582,-55496.50211689,0.00023,2]
[312567389,1706009438591,-159.79,0.00023169,2]
[312567390,1706009438601,-1272.13763881,0.00023246,2]
[312567391,1706009438611,-159.79,0.0002346,2]
[312567392,1706009438620,-2205.0,0.000235,2]
[312567394,1706009438629,-10050.0,0.000235,2]
[312567395,1706009438638,-776.48,0.00023548,2]
[312567396,1706009438647,-187.35,0.00023786,2]
[312567397,1706009438660,-664.1,0.00023911,2]
[312567398,1706009438669,-201.77403608,0.00024,2]
[312567399,1706009438678,-206.0,0.00024143,4]
[312567401,1706009438688,-167.32,0.00024297,2]
[312567403,1706009438697,-776.48,0.00024359,2]
[312567404,1706009438706,-1000.0,0.00024388,2]
[312567405,1706009438715,-200.0,0.00024552,2]
[312567406,1706009438725,-150.0,0.0002474,2]
[312567407,1706009438734,-668.12770704,0.00025,2]
[312567408,1706009438743,-350.0,0.00025,3]
[312567409,1706009438753,-409.03291433,0.00025,2]
[312567410,1706009438762,-1590.92770336,0.00025,2]
[312567411,1706009438770,-776.48,0.0002517,2]
[312567412,1706009438779,-187.35,0.0002543,2]
[312567413,1706009438788,-206.0,0.0002603,7]
[312567414,1706009438797,-232.09652185,0.00026175,2]
[312567426,1706009440853,-432.00347815,0.00026175,2]
[312567427,1706009440863,-200.0,0.00026288,2]
[312567428,1706009440873,-200.0,0.00026288,2]
[312567429,1706009440882,-188.2046145,0.00026575,2]
[312567430,1706009440893,-1015.8653855,0.00026575,2]
[312567431,1706009440902,-400.0,0.00027,3]
[312567432,1706009440915,-187.35,0.00027074,2]
[312567433,1706009440924,-301.96632228,0.00027097,2]
[312567434,1706009440944,-698.03367772,0.00027097,2]
[312567435,1706009440953,-155.0,0.00027397,2]
[312567436,1706009440963,-228.99132172,0.00027397,2]
[312567437,1706009440974,-16.86867828,0.00027397,2]
[312567438,1706009440983,-183.76,0.00027397,2]
[312567439,1706009440992,-172.87,0.00027397,2]
[312567440,1706009441002,-168.36,0.000274,2]
[312567441,1706009441011,-245.86,0.00027686,2]
[312567442,1706009441020,-761.06443758,0.00027686,6]
[312567443,1706009441029,-206.0,0.00027918,10]
[312567444,1706009441039,-245.86,0.00027974,2]
[312567445,1706009441048,-200.0,0.00028024,3]
[312567446,1706009441057,-245.86,0.00028262,2]
[312567447,1706009441066,-188.54948321,0.00028404,2]
[312567448,1706009441075,-180.174,0.0002843,2]
[312567449,1706009441084,-215.0,0.0002843,2]
[312567450,1706009441093,-593.851,0.0002843,2]
[312567451,1706009441103,-998.0,0.0002843,2]
[312567452,1706009441112,-426.0,0.0002843,2]
[312567453,1706009441122,-236.0,0.0002843,2]
[312567454,1706009441131,-664.1,0.00028439,2]
[312567455,1706009441140,-245.86,0.00028551,2]
[312567456,1706009441149,-187.35,0.00028718,2]
[312567457,1706009441161,-155.0,0.00028767,2]
[312567458,1706009441170,-245.86,0.00028839,2]
[312567459,1706009441179,-450.0,0.00029,3]
[312567460,1706009441188,-245.86,0.00029128,2]
[312567461,1706009441197,-172.87,0.00029224,2]
[312567462,1706009441206,-1489.79324501,0.000294,2]
[312567463,1706009441216,-1489.79324498,0.000294,2]
[312567464,1706009441225,-1489.79324498,0.000294,2]
[312567465,1706009441235,-1489.79324498,0.000294,2]
[312567466,1706009441244,-1489.79324498,0.000294,2]
[312567467,1706009441253,-1489.79324498,0.000294,2]
[312567468,1706009441262,-551.2939634,0.000294,2]
[312567469,1706009441275,-938.49928158,0.000294,2]
[312567470,1706009441284,-1489.79324498,0.000294,2]
[312567471,1706009441293,-673.79111041,0.000294,2]
[312567472,1706009441944,-816.00213457,0.000294,2]
[312567473,1706009441954,-245.86,0.00029416,2]
[312567474,1706009441963,-222.52871988,0.000296,4]
[312567475,1706009441973,-245.86,0.00029704,2]
[312567476,1706009441982,-200.0,0.00029759,3]
[312567477,1706009441991,-800.0,0.00029759,3]
[312567478,1706009442000,-200.0,0.00029759,3]
[312567479,1706009442010,-800.0,0.0002976,3]
[312567480,1706009442019,-800.0,0.0002976,3]
[312567481,1706009442029,-800.0,0.0002976,3]
[312567482,1706009442039,-313.62914555,0.0002976,3]
[312567483,1706009442082,-486.37085445,0.0002976,3]
[312567484,1706009442092,-520.70081426,0.00029798,4]
[312567485,1706009442101,-1489.79324498,0.000298,2]
[312567486,1706009442111,-206.0,0.00029805,13]
[312567487,1706009442120,-1000.0,0.00029807,2]
[312567488,1706009442129,-226.11786442,0.00029898,2]
[312567489,1706009442138,-1179.42600264,0.00029898,2]
[312567490,1706009442148,-357.10627192,0.00029898,2]
[312567491,1706009442158,-199.32847921,0.00029898,2]
[312567493,1706009442168,-300.9098558,0.00029898,2]
[312567494,1706009442177,-1068.82822182,0.00029898,2]
[312567496,1706009442187,-4627.55845064,0.00029898,2]
[312567498,1706009442196,-1115.45000218,0.00029898,2]
[312567500,1706009442206,-155.0,0.00029898,2]
[312567501,1706009442215,-155.0,0.00029898,2]
[312567502,1706009442224,-155.0,0.00029898,2]
[312567503,1706009442233,-1851.31601875,0.00029899,2]
[312567504,1706009442243,-155.0,0.000299,2]
[312567505,1706009442253,-666.97354782,0.000299,2]
[312567506,1706009442668,155.0,0.00021291,2]
[312567537,1706009443287,-700.28754714,0.00022597,2]
[312567538,1706009443299,-344.86275767,0.000299,2]
[312567539,1706009443310,-610.57725012,0.000299,2]
[312567540,1706009443320,-511.00063774,0.000299,2]
[312567541,1706009443330,-368.38730643,0.000299,2]
[312567542,1706009443340,-245.86,0.00029993,2]
[312567543,1706009443350,-158.71925605,0.00029998,2]
[312567544,1706009443359,-216.95528023,0.00029999,2]
[312567545,1706009443369,-3299.43555455,0.00029999,2]
[312567546,1706009443380,-349.61116019,0.0003,6]
[312567547,1706009443390,-69671.47062595,0.0003,2]
[312567548,1706009443402,-725.01517524,0.0003,2]
[312567549,1706009443435,-4272.69298,0.0003,2]
[312567550,1706009443446,-5456.47216237,0.0003,2]
[312567551,1706009443457,-4979.32300001,0.0003,2]
[312567552,1706009443581,-873.58519975,0.0003,2]
[312567553,1706009443593,-5826.51945158,0.0003,2]
[312567554,1706009443609,-514.59376721,0.0003,2]
[312567555,1706009443733,-572.06729376,0.0003,2]
[312567557,1706009446403,-3191.26397536,0.00029999,2]
[312567558,1706009446416,-16829.68223437,0.0003,2]
[312567559,1706009446428,-919.84914807,0.0003,2]
[312567560,1706009446458,-252.16500746,0.0003,2]
[312567561,1706009446471,-3631.89476457,0.0003,2]
[312567562,1706009446482,-6974.39745659,0.0003,2]
[312567563,1706009446534,-910.85237383,0.0003,2]
[312567564,1706009446546,-14424.99778769,0.0003,2]
[312567565,1706009446634,-274104.06060737,0.0003,2]
[312567566,1706009446643,-764.11347582,0.0003,4]
[312567567,1706009446653,-584.76109505,0.0003,2]
[312567568,1706009446665,-694.42463172,0.0003,2]
[312567569,1706009446675,-468.14271149,0.0003,4]
[312567570,1706009446685,-767.16175879,0.0003,4]
[312567571,1706009446694,-193.03747873,0.0003,2]
[312567572,1706009446705,-5623.87809387,0.0003,2]
[312567573,1706009446715,-155.0,0.0003,2]
[312567574,1706009446725,-40678.2052449,0.0003,4]
[312567575,1706009446735,-357.81564083,0.0003,2]
[312567576,1706009446745,-1197.49243722,0.0003,2]
[312567577,1706009446755,-203.0,0.0003,2]
[312567578,1706009446766,-183.76,0.00030137,2]
[312567579,1706009446775,-154.67,0.00030137,2]
[312567580,1706009446786,-155.0,0.00030137,2]
[312567581,1706009446795,-150.0,0.00030238,7]
[312567582,1706009446804,-245.86,0.00030281,2]
[312567583,1706009446813,-187.35,0.00030362,2]
[312567584,1706009446823,-245.86,0.00030569,2]
[312567585,1706009446832,-1489.79324498,0.000306,2]
[312567586,1706009446841,-299.45,0.00030634,2]
[312567587,1706009446850,-664.1,0.00030703,2]
[312567588,1706009446859,-245.86,0.00030858,2]
[312567589,1706009446868,-500.0,0.00031,3]
[312567590,1706009446877,-172.87,0.0003105,2]
[312567591,1706009446886,-245.86,0.00031146,2]
[312567592,1706009446895,-434.16424201,0.0003135,2]
[312567593,1706009446903,-1489.79324498,0.000314,2]
[312567594,1706009446915,-215.0,0.0003143,2]
[312567595,1706009446924,-998.0,0.0003143,2]
[312567596,1706009446933,-426.0,0.0003143,2]
[312567597,1706009446942,-236.0,0.0003143,2]
[312567598,1706009446951,-245.86,0.00031435,2]
[312567599,1706009446960,-157.1029184,0.00031507,2]
[312567600,1706009446968,-184.64,0.00031644,2]
[312567601,1706009446978,-206.0,0.00031692,16]
[312567602,1706009446987,-461.75821408,0.00031715,5]
[312567604,1706009447053,-707.74103951,0.00031715,5]
[312567608,1706009793984,206.0,0.00021256,2]
[312567609,1706009913770,208.0,0.00021256,2]
[312567612,1706010118183,2000.0,0.00021253,2]
[312567613,1706010125939,155.0,0.0002136,2]
[312567614,1706010139457,504.41543892,0.0002136,2]
[312567615,1706010181398,1812.06513757,0.00021137,2]
[312567616,1706010184996,155.36450077,0.00021253,2]
[312567617,1706010186610,1601.10783857,0.0002225,10]
[312567618,1706010186634,9858.37838051,0.0002225,10]
[312567619,1706010191144,294.56109881,0.00021253,15]
[312567621,1706010245097,3705.43890119,0.00021805,10]
[312567635,1706010523635,645.97,0.00019501,2]
[312567636,1706010532571,2000.0,0.00021265,2]
[312567653,1706010608835,177.96,0.00021084,2]
[312567654,1706010630856,244.62,0.00021084,2]
[312567682,1706010631577,-370.81454833,0.00021517,2]
[312567683,1706010631587,-504.41543892,0.00021518,2]
[312567684,1706010631596,-181.2021,0.00021519,2]
[312567685,1706010631605,-1527.21197598,0.0002161,2]
[312567686,1706010631633,-2723.88726317,0.0002161,2]
[312567687,1706010631643,-697.4417975,0.00021611,2]
[312567688,1706010631653,-155.0,0.00021611,2]
[312567689,1706010631662,-305.81307092,0.00021612,2]
[312567690,1706010631933,-2007.94237546,0.00021612,2]
[312567691,1706010631945,-2139.15,0.00021612,2]
[312567692,1706010631956,-177.90995966,0.00021612,2]
[312567693,1706010631966,-228.52691298,0.00021612,2]
[312567694,1706010631975,-1804.56312736,0.00021613,2]
[312567695,1706010632006,-818.08184696,0.00021613,2]
[312567696,1706010632017,-252.04447886,0.00021614,2]
[312567697,1706010632027,-1092.0,0.00021621,2]
[312567698,1706010632036,-1201.18,0.00021622,2]
[312567699,1706010632045,-205.0,0.00021678,2]
[312567700,1706010632054,-300.0,0.00021691,2]
[312567701,1706010632063,-165.30694904,0.00021704,2]
[312567702,1706010632073,-150.99,0.00021704,2]
[312567703,1706010632082,-645.97,0.00021765,2]
[312567704,1706010632090,-209.66,0.000218,2]
[312567705,1706010632099,-11364.32702419,0.00021802,10]
[312567706,1706010632107,-2172.06184837,0.00021806,2]
[312567707,1706010632117,-837.15,0.00021905,2]
[312567708,1706010632126,-250.0,0.00021918,2]
[312567709,1706010632135,-250.0,0.00021993,2]
[312567710,1706010632145,-223.19869272,0.00022027,4]
[312567711,1706010632154,-625.0,0.0002215,2]
[312567712,1706010632164,-279.55344509,0.0002225,2]
[312567713,1706010632173,-1177.8616938,0.0002225,2]
[312567714,1706010632183,-155.35523056,0.0002225,2]
[312567715,1706010632192,-2505.14239775,0.0002225,2]
[312567716,1706010632202,-2204.45989725,0.0002225,2]
[312567717,1706010632214,-827.80706748,0.0002225,2]
[312567718,1706010632223,-527.36681335,0.0002225,2]
[312567719,1706010632233,-16854.91148032,0.00022251,2]
[312567720,1706010632243,-1812.15097522,0.00022251,2]
[312567721,1706010632252,-1295.26366363,0.00022251,2]
[312567722,1706010632275,-818.26057678,0.00022251,2]
[312567723,1706010632287,-485.80288671,0.00022251,2]
[312567724,1706010632298,-2327.42293412,0.00022251,2]
[312567725,1706010632310,-408.25,0.00022251,2]
[312567726,1706010632322,-3734.65934476,0.00022251,2]
[312567727,1706010632332,-18277.53799382,0.00022252,2]
[312567728,1706010632341,-4993.62,0.00022262,2]
[312567729,1706010632352,-6012.5957,0.000225,2]
[312567730,1706010632362,-159.81,0.00022573,2]
[312567731,1706010632371,-1052.25459755,0.00022598,2]
[312567732,1706010632381,-698.04764279,0.00022598,2]
[312567733,1706010632390,-337.2296826,0.00022598,2]
[312567734,1706010632400,-346.04461687,0.00022598,2]
[312567735,1706010632409,-325.2653,0.00022598,2]
[312567736,1706010632419,-155.0,0.00022598,2]
[312567737,1706010632429,-106253.49502607,0.000226,2]
[312567738,1706010632440,-1551.76,0.000226,2]
[312567739,1706010632452,-464.24685184,0.000226,2]
[312567740,1706010632463,-11923.52282209,0.000226,2]
[312567741,1706010632472,-392.75,0.000226,2]
[312567742,1706010632481,-4427.10547497,0.000227,2]
[312567743,1706010632491,-244.62,0.00022728,2]
[312567744,1706010632500,-286.42,0.00022752,2]
[312567745,1706010632509,-678.56,0.00022752,2]
[312567746,1706010632522,-150.0,0.00022905,2]
[312567747,1706010632532,-818.86,0.00022905,2]
[312567748,1706010632541,-325.27,0.00023311,2]
[312567749,1706010632550,-200.0,0.0002336,2]
[312567750,1706010632559,-2205.0,0.000235,2]
[312567751,1706010632569,-180.0,0.00023578,2]
[312567752,1706010632578,-678.56,0.00023594,2]
[312567753,1706010632588,-10050.0,0.000236,2]
[312567754,1706010632597,-159.81,0.00023749,2]
[312567755,1706010632606,-205.0,0.00023932,5]
[312567756,1706010632616,-201.77403608,0.00024,2]
[312567757,1706010632625,-645.97,0.00024029,2]
[312567758,1706010632634,-165.30694901,0.00024308,2]
[312567759,1706010632648,-244.62,0.00024372,2]
[312567760,1706010632658,-678.56,0.00024435,2]
[312567761,1706010632669,-435.26286563,0.00025,2]
[312567762,1706010632679,-668.12770704,0.00025,2]
[312567763,1706010632689,-409.03291433,0.00025,2]
[312567764,1706010632698,-1590.92770336,0.00025,2]
[312567765,1706010632709,-450.0,0.00025,3]
[312567766,1706010632718,-370.44752748,0.00025277,2]
[312567767,1706010633750,-308.11247252,0.00025277,2]
[312567769,1706010633761,-80.27552748,0.00026015,2]
[312567794,1706010639270,-164.34447252,0.00026015,2]
[312567795,1706010639279,-341.45551798,0.00026108,2]
[312567796,1706010639290,-458.54448202,0.00026108,2]
[312567797,1706010639300,-646.98056759,0.00026119,2]
[312567798,1706010639312,-31.57943241,0.00026119,2]
[312567799,1706010639322,-205.0,0.00026186,8]
[312567800,1706010639332,-200.0,0.00026279,2]
[312567801,1706010639341,-645.97,0.00026293,2]
[312567802,1706010639350,-1003.39,0.00026575,2]
[312567803,1706010639359,-82.82625268,0.00026913,2]
[312567804,1706010639379,-82.48069633,0.00026913,2]
[312567805,1706010639388,-500.0,0.00027,3]
[312567806,1706010639398,-174.57,0.00027397,2]
[312567807,1706010639407,-168.36,0.000274,2]
[312567808,1706010639416,-244.62,0.00027659,2]
[312567809,1706010639425,-205.0,0.0002844,12]
[312567810,1706010639435,-510.98206125,0.00028557,2]
[312567811,1706010639477,-134.98793875,0.00028557,2]
[312567812,1706010639486,-550.0,0.00029,3]
[312567813,1706010639495,-176.47,0.00029,2]
[312567814,1706010639504,-2476.20957475,0.00029097,2]
[312567815,1706010639514,-200.0,0.00029199,2]
[312567816,1706010639525,-244.62,0.00029303,2]
[312567817,1706010639534,-800.0,0.00029372,2]
[312567818,1706010639543,-785.77631576,0.000294,2]
[312567819,1706010639552,-785.77631565,0.000294,2]
[312567820,1706010639561,-210.0,0.00029465,2]
[312567821,1706010639571,-236.0,0.00029465,2]
[312567822,1706010639580,-426.0,0.00029465,2]
[312567823,1706010639590,-998.0,0.00029465,2]
[312567824,1706010639599,-150.0,0.00029465,2]
[312567825,1706010639608,-168.07,0.00029465,2]
[312567827,1706010639617,-658.212,0.00029465,2]
[312567828,1706010639626,-2274.0,0.00029465,2]
[312567829,1706010639636,-19709.0,0.00029465,2]
[312567830,1706010639647,-371.182,0.00029465,2]
[312567831,1706010639658,-150.0,0.00029465,2]
[312567832,1706010639667,-165.30694901,0.00029517,2]
[312567833,1706010639676,-176.47,0.00029548,2]
[312567835,1706010639685,-3608.0,0.000297,2]
[312567837,1706010639695,-1700.95738506,0.000298,4]
[312567839,1706010639704,-500.0,0.000299,2]
[312567841,1706010639713,-1000.0,0.000299,2]
[312567843,1706010639723,-39437.70015938,0.000299,2]
[312567858,1706010639862,-150.0,0.00029465,2]
[312567860,1706010639871,-1797.22794062,0.000299,2]
[312567862,1706010639881,-39886.5644,0.000299,2]
[312567864,1706010639890,-26891.45436725,0.000299,2]
[312567865,1706010639984,-776.99,0.000299,2]
[312567866,1706010640000,-2716.49378,0.000299,2]
[312567867,1706010640121,-38818.76399997,0.000299,2]
[312567868,1706010640132,-1934.13325,0.000299,2]
[312567869,1706010640143,-813.9352847,0.000299,2]
[312567870,1706010640154,-4961.80527483,0.000299,2]
[312567871,1706010640169,-280.59169182,0.000299,2]
[312567872,1706010640180,-654.48176482,0.000299,2]
[312567873,1706010640191,-5494.98237942,0.000299,2]
[312567874,1706010640202,-688.81217938,0.000299,2]
[312567875,1706010640224,-785.77631565,0.000294,2]
[312567876,1706010640233,-15967.55602781,0.000299,2]
[312567877,1706010640242,-1875.76477063,0.000299,2]
[312567878,1706010640253,-1069.30252286,0.000299,2]
[312567879,1706010640262,-155.15396253,0.000299,2]
[312567880,1706010640270,-239.45781892,0.0002999,2]
[312567881,1706010640282,-196.98832126,0.00029997,2]
[312567882,1706010640291,-201.85769498,0.00029997,2]
[312567883,1706010640334,-137.00423641,0.00029997,2]
[312567884,1706010640344,-252.07576359,0.00029999,2]
[312567885,1706010640357,-431.37354967,0.00029999,2]
[312567886,1706010640367,-299.69259314,0.00029999,15]
[312567887,1706010640376,-1462.0,0.0003,5]
[312567888,1706010640386,-4463.78741628,0.0003,2]
[312567889,1706010640398,-1058.40994365,0.0003,2]
[312567890,1706010640417,-101.68073394,0.0003,2]
[312567891,1706010640428,-2631.01388887,0.0003,2]
[312567892,1706010640439,-455.20087013,0.0003,2]
[312567893,1706010640450,-429.27690379,0.0003,2]
[312567894,1706010640981,-283369.35979853,0.0003,2]
[312567895,1706010640993,-9233.68984971,0.0003,2]
[312567968,1706010642625,-19229.53769326,0.0003,2]
[312567972,1706010642662,-1314.17378439,0.0003,2]
[312567985,1706010642777,-1273.64359534,0.0003,2]
[312567987,1706010642792,-2782.0195994,0.0003,2]
[312567989,1706010642804,-1063.81631519,0.0003,2]
[312567991,1706010642815,-803.92841362,0.0003,2]
[312567992,1706010642826,-695.22988257,0.0003,2]
[312567993,1706010642837,-1583.15590283,0.0003,2]
[312567994,1706010642897,-205480.66511382,0.0003,2]
[312567995,1706010642910,-855.62630079,0.0003,2]
[312567996,1706010642926,-352.72799642,0.0003,2]
[312567998,1706010642939,-7150.17302534,0.0003,2]
[312568000,1706010642953,-3968.13798724,0.0003,2]
[312568001,1706010642965,-4400.40477257,0.0003,2]
[312568002,1706010642978,-20971.15240037,0.0003,2]
[312568003,1706010642991,-688.47118781,0.0003,2]
[312568004,1706010643004,-23298.4752,0.0003,2]
[312568025,1706010645589,-326.42071943,0.000294,2]
[312568031,1706010646054,-459.35559622,0.000294,2]
[312568033,1706010646064,-371.4887386,0.00029999,2]
[312568035,1706010646074,-356.4982323,0.00029999,2]
[312568037,1706010646085,-4630.81540604,0.00029999,2]
[312568040,1706010646096,-1769.41848689,0.00029999,2]
[312568042,1706010646107,-88065.13577694,0.0003,2]
[312568044,1706010646118,-763.04394456,0.0003,4]
[312568046,1706010646128,-598.43172801,0.0003,4]
[312568048,1706010646138,-155.0,0.0003,2]
[312568050,1706010646148,-204.0,0.0003,2]
[312568052,1706010646158,-176.47,0.00030096,2]
[312568054,1706010646168,-154.67,0.00030137,2]
[312568055,1706010646178,-167.32,0.00030566,2]
[312568057,1706010646187,-200.0,0.00030575,3]
[312568059,1706010646197,-176.47,0.00030644,2]
[312568060,1706010646208,-205.0,0.00030695,15]
[312568061,1706010646218,-645.97,0.00030821,2]
[312568062,1706010646227,-600.0,0.00031,3]
[312568063,1706010646237,-176.47,0.00031192,2]
[312568064,1706010646247,-2945.06729349,0.00031355,2]
[312568065,1706010646257,-200.0,0.0003139,3]
[312568066,1706010646266,-800.0,0.00031391,3]
[312568068,1706010646279,-152.0,0.00031501,3]
[312568070,1706010646290,-3299.43555455,0.00031643,2]
[312568071,1706010646300,-2791.8598403,0.00031712,2]
[312568072,1706010646310,-4843.9429564,0.00031712,2]
[312568074,1706010646320,-44122.9793495,0.00031712,2]
[312568076,1706010646329,-310.0,0.00031715,4]
[312568078,1706010646341,-155.0,0.00031715,4]
[312568080,1706010646350,-4262.34281777,0.00031715,15]
[312568082,1706010646360,-200.0,0.00031715,2]
[312568083,1706010646370,-1381.6624045,0.00031715,4]
[312568085,1706010646380,-500.0,0.00031715,2]
[312568087,1706010646390,-500.0,0.00031715,2]
[312568089,1706010646399,-200.0,0.00031715,2]
[312568091,1706010646413,-245.86,0.00031723,2]
[312568093,1706010646423,-176.47,0.0003174,2]
[312568095,1706010646432,-10446.20574,0.000318,3]
[312568097,1706010646442,-1422.13763881,0.00031941,2]
[312568099,1706010646452,-155.60349879,0.00032,2]
[312568101,1706010646462,-968.746937,0.00032,7]
[312568103,1706010646472,-245.86,0.00032011,2]
[312568106,1706010646482,-200.0,0.00032032,2]
[312568108,1706010646492,-200.0,0.00032119,2]
[312568110,1706010646502,-165.30694901,0.00032121,2]
[312568112,1706010646512,-1700.95738503,0.00032229,5]
[312568114,1706010646522,-176.47,0.00032288,2]
[312568116,1706010646535,-292.16,0.00032297,2]
[312568118,1706010646545,-292.16,0.00032297,2]
[312568120,1706010646555,-584.19,0.00032297,2]
[312568122,1706010646565,-292.16,0.00032297,2]
[312568124,1706010646574,-291.12,0.00032297,2]
[312568126,1706010646584,-292.16,0.00032297,2]
[312568128,1706010646594,-292.16,0.00032297,2]
[312568130,1706010646604,-292.16,0.00032297,2]
[312568132,1706010646614,-245.86,0.000323,2]
[312568134,1706010646624,-200.0,0.00032352,2]
[312568136,1706010646634,-426.0,0.00032465,2]
[312568139,1706010646645,-993.0,0.00032465,2]
[312568141,1706010646658,-150.0,0.00032465,2]
[312568143,1706010646669,-245.86,0.00032588,2]
[312568145,1706010646679,-800.0,0.00032635,2]
[312568147,1706010646688,-150.0,0.00032736,2]
[312568149,1706010646699,-2945.06729349,0.00032809,4]
[312568151,1706010646708,-351.62,0.00032836,2]
[312568153,1706010646718,-150.0,0.0003284,2]
[312568155,1706010646728,-245.86,0.00032877,2]
[312568157,1706010646737,-183.76,0.00032877,2]
[312568159,1706010646748,-204.23,0.00032877,15]
[312568161,1706010646758,-500.0,0.00032877,2]
[312568163,1706010646769,-172.87,0.00032877,2]
[312568165,1706010646783,-10000.0,0.0003289,2]
[312568167,1706010646794,-150.0,0.00032897,2]
[312568169,1706010646804,-150.0,0.00032944,2]
[312568171,1706010646815,-205.0,0.00032949,19]
[312568173,1706010646824,-612.81683387,0.0003297,2]
[312568176,1706010646834,-400.0,0.0003297,2]
[312568178,1706010646844,-278.97740135,0.00032989,2]
[312568180,1706010646854,-158.0,0.00032993,2]
[312568182,1706010646864,-841.55822222,0.00033,2]
[312568184,1706010646873,-3466.06227411,0.00033,2]
[312568186,1706010646882,-274.47186855,0.00033,4]
[312568188,1706010646892,-650.0,0.00033,3]
[312568190,1706010646903,-500.0,0.00033,7]
[312568192,1706010646913,-500.0,0.00033,2]
[312568194,1706010646926,-275.5,0.00033,2]
[312568242,1706010647354,-250.43,0.00033,2]
[312568244,1706010647365,-645.97,0.00033084,2]
[312568246,1706010647375,-167.26981343,0.0003333,2]
[312568248,1706010647384,-25725.42706865,0.000335,4]
[312568250,1706010647394,-418.9,0.00033747,2]
[312568252,1706010647404,-292.16,0.00033747,2]
[312568254,1706010647414,-292.16,0.00033747,2]
[312568256,1706010647423,-291.77,0.00033747,2]
[312568258,1706010647433,-154.67,0.0003379,2]
[312568260,1706010647443,-152.0,0.00033809,4]
[312568262,1706010647453,-155.15396252,0.000339,2]
[312568266,1706010647474,-1000.0,0.00034,4]
[312568268,1706010647485,-500.0,0.00034,2]
[312568270,1706010647495,-155.38442978,0.00034,4]
[312568272,1706010647507,-214.92979742,0.00034,2]
[312568274,1706010647517,-500.0,0.00034,7]
[312568276,1706010647527,-574.620274,0.00034,2]
[312568278,1706010647540,-277.589215,0.00034,2]
[312568280,1706010647550,-3392.62414297,0.00034122,2]
[312568282,1706010647562,-2945.06729349,0.00034264,6]
[312568285,1706010647573,-1000.0,0.000343,2]
[312568287,1706010647584,-344.0,0.000345,2]
[312568289,1706010647595,-150.0,0.00034548,10]
[312568291,1706010647607,-418.9,0.00034569,2]
[312568293,1706010647617,-1700.95738503,0.00034657,7]
[312568295,1706010647627,-165.30694901,0.00034726,2]
[312568297,1706010647638,-914.57623663,0.000349,10]
[312568299,1706010647649,-535.08709165,0.000349,2]
[312568302,1706010647660,-535.08709159,0.000349,2]
[312568304,1706010647670,-535.08709159,0.000349,2]
[312568306,1706010647680,-535.08709159,0.000349,2]
[312568308,1706010647693,-1736.47781089,0.0003499,2]
[312568310,1706010647703,-98644.05125127,0.00035,15]
[312568362,1706010648197,-1231.39907013,0.00035,15]
[312568809,1706010659592,54.97320549,0.00021084,2]
[312568810,1706010680509,940.41723631,9e-05,2]
[312568812,1706010767268,3014.86149493,0.00021002,2]
[312568814,1706010802083,610.57725012,0.00021002,2]